[Event "Masters Tournament (MTO)"]
[Site "Biel, Switzerland"]
[Date "2026.07.17"]
[Round "5.15"]
[White "Ivana Maria, Furtado"]
[Black "Lu, Miaoyi"]
[Result "1/2-1/2"]
[TimeControl "100+30+30sec/move"]
[WhiteTitle "-"]
[BlackTitle "-"]
[WhiteFideId "5048400"]
[BlackFideId "8618020"]
[WhiteElo "2182"]
[BlackElo "2392"]

1. Nf3 {[%clk 01:40:35]} {[%emt 00:00:24]} Nf6 {[%clk 01:38:48]} {[%emt
00:02:12]} 2. c4 {[%clk 01:40:42]} {[%emt 00:00:26]} b6 {[%clk 01:36:14]}
{[%emt 00:03:02]} 3. d4 {[%clk 01:34:42]} {[%emt 00:06:29]} e6 {[%clk
01:36:38]} {[%emt 00:00:06]} 4. Nc3 {[%clk 01:32:56]} {[%emt 00:02:16]} Bb4
{[%clk 01:37:01]} {[%emt 00:00:08]} 5. Bd2 {[%clk 01:31:04]} {[%emt 00:02:22]}
Bb7 {[%clk 01:36:22]} {[%emt 00:01:09]} 6. e3 {[%clk 01:31:23]} {[%emt
00:00:11]} O-O {[%clk 01:36:23]} {[%emt 00:00:29]} 7. Bd3 {[%clk 01:30:39]}
{[%emt 00:01:13]} c5 {[%clk 01:36:03]} {[%emt 00:00:50]} 8. a3 {[%clk
01:27:45]} {[%emt 00:03:24]} Bxc3 {[%clk 01:36:26]} {[%emt 00:00:07]} 9. Bxc3
{[%clk 01:27:10]} {[%emt 00:01:05]} cxd4 {[%clk 01:36:49]} {[%emt 00:00:07]} 10.
Bxd4 {[%clk 01:20:52]} {[%emt 00:06:47]} d6 {[%clk 01:36:35]} {[%emt 00:00:45]}
11. Bc3 {[%clk 01:13:02]} {[%emt 00:08:20]} e5 {[%clk 01:36:57]} {[%emt
00:00:09]} 12. Be2 {[%clk 01:12:37]} {[%emt 00:00:55]} Ne4 {[%clk 01:34:30]}
{[%emt 00:02:57]} 13. Rc1 {[%clk 01:12:57]} {[%emt 00:00:10]} Nd7 {[%clk
01:29:42]} {[%emt 00:05:18]} 14. O-O {[%clk 01:10:08]} {[%emt 00:03:18]} f5
{[%clk 01:10:28]} {[%emt 00:19:44]} 15. Nd2 {[%clk 01:07:40]} {[%emt 00:02:58]}
Nxc3 {[%clk 00:59:48]} {[%emt 00:11:11]} 16. Rxc3 {[%clk 01:07:54]} {[%emt
00:00:16]} Nf6 {[%clk 00:58:59]} {[%emt 00:01:19]} 17. f4 {[%clk 01:06:03]}
{[%emt 00:02:20]} Qe7 {[%clk 00:50:12]} {[%emt 00:09:17]} 18. Bf3 {[%clk
01:01:23]} {[%emt 00:05:10]} Rad8 {[%clk 00:41:41]} {[%emt 00:09:01]} 19. Bxb7
{[%clk 00:57:23]} {[%emt 00:04:30]} Qxb7 {[%clk 00:42:09]} {[%emt 00:00:02]} 20.
Qf3 {[%clk 00:50:29]} {[%emt 00:07:24]} Qxf3 {[%clk 00:31:49]} {[%emt
00:10:50]} 21. Nxf3 {[%clk 00:48:57]} {[%emt 00:02:01]} Rfe8 {[%clk 00:31:22]}
{[%emt 00:00:58]} 22. g3 {[%clk 00:41:34]} {[%emt 00:07:53]} exf4 {[%clk
00:29:08]} {[%emt 00:02:45]} 23. gxf4 {[%clk 00:37:05]} {[%emt 00:04:58]} Ne4
{[%clk 00:20:24]} {[%emt 00:09:14]} 24. Rcc1 {[%clk 00:33:10]} {[%emt
00:04:25]} Nc5 {[%clk 00:20:07]} {[%emt 00:00:47]} 25. Rc3 {[%clk 00:33:17]}
{[%emt 00:00:23]} Na4 {[%clk 00:16:43]} {[%emt 00:03:54]} 26. Rb3 {[%clk
00:33:42]} {[%emt 00:00:05]} Nc5 {[%clk 00:15:33]} {[%emt 00:01:40]} 27. Rc3
{[%clk 00:34:07]} {[%emt 00:00:05]} Na4 {[%clk 00:14:05]} {[%emt 00:01:58]} 28.
Rb3 {[%clk 00:34:19]} {[%emt 00:00:18]} Re4 {[%clk 00:13:14]} {[%emt 00:01:22]}
29. Nd4 {[%clk 00:29:45]} {[%emt 00:05:04]} d5 {[%clk 00:07:43]} {[%emt
00:06:01]} 30. cxd5 {[%clk 00:27:53]} {[%emt 00:02:22]} Rxd5 {[%clk 00:08:01]}
{[%emt 00:00:11]} 31. Rc1 {[%clk 00:27:50]} {[%emt 00:00:32]} Rc5 {[%emt
00:08:40]} 1/2-1/2

[Event "Masters Tournament (MTO)"]
[Site "Biel, Switzerland"]
[Date "2026.07.17"]
[Round "5.16"]
[White "Fogo Esquivel, Levi Kalani Alexander"]
[Black "Georgescu, Lena"]
[Result "1/2-1/2"]
[TimeControl "100+30+30sec/move"]
[WhiteTitle "-"]
[BlackTitle "-"]
[WhiteFideId "5183189"]
[BlackFideId "1331973"]
[WhiteElo "2125"]
[BlackElo "2253"]

1. e4 {[%clk 01:34:31]} {[%emt 00:06:28]} c5 {[%clk 01:40:56]} {[%emt
00:00:05]} 2. Nf3 {[%clk 01:34:55]} {[%emt 00:00:07]} d6 {[%clk 01:41:21]}
{[%emt 00:00:05]} 3. c3 {[%clk 01:34:19]} {[%emt 00:01:05]} Nf6 {[%clk
01:41:42]} {[%emt 00:00:08]} 4. Be2 {[%clk 01:34:45]} {[%emt 00:00:04]} g6
{[%clk 01:42:08]} {[%emt 00:00:05]} 5. O-O {[%clk 01:35:11]} {[%emt 00:00:04]}
Bg7 {[%clk 01:42:34]} {[%emt 00:00:04]} 6. Bb5+ {[%clk 01:35:36]} {[%emt
00:00:05]} Nc6 {[%clk 01:42:54]} {[%emt 00:00:10]} 7. Re1 {[%clk 01:35:54]}
{[%emt 00:00:12]} O-O {[%clk 01:43:08]} {[%emt 00:00:15]} 8. h3 {[%clk
01:36:19]} {[%emt 00:00:05]} e5 {[%clk 01:38:35]} {[%emt 00:05:04]} 9. d4
{[%clk 01:36:28]} {[%emt 00:00:21]} exd4 {[%clk 01:36:01]} {[%emt 00:03:04]} 10.
cxd4 {[%clk 01:34:31]} {[%emt 00:02:27]} cxd4 {[%clk 01:20:05]} {[%emt
00:16:27]} 11. Nxd4 {[%clk 01:29:44]} {[%emt 00:05:17]} Nxd4 {[%clk 01:20:22]}
{[%emt 00:00:13]} 12. Qxd4 {[%clk 01:30:05]} {[%emt 00:00:08]} a6 {[%clk
01:11:15]} {[%emt 00:09:37]} 13. Bf1 {[%clk 01:20:37]} {[%emt 00:09:57]} Re8
{[%clk 01:09:57]} {[%emt 00:01:49]} 14. Qd3 {[%clk 01:08:36]} {[%emt 00:12:31]}
d5 {[%clk 00:59:14]} {[%emt 00:11:14]} 15. Bg5 {[%clk 00:50:38]} {[%emt
00:18:28]} Bf5 {[%clk 00:33:12]} {[%emt 00:26:31]} 16. Nc3 {[%clk 00:49:36]}
{[%emt 00:01:32]} Bxe4 {[%clk 00:30:39]} {[%emt 00:03:03]} 17. Bxf6 {[%clk
00:49:03]} {[%emt 00:01:03]} Qxf6 {[%clk 00:25:08]} {[%emt 00:06:00]} 18. Nxe4
{[%clk 00:49:29]} {[%emt 00:00:05]} dxe4 {[%clk 00:25:34]} {[%emt 00:00:03]} 19.
Rxe4 {[%clk 00:49:53]} {[%emt 00:00:07]} Qxb2 {[%clk 00:23:07]} {[%emt
00:02:57]} 20. Rb1 {[%clk 00:48:06]} {[%emt 00:02:18]} Qxa2 {[%clk 00:23:19]}
{[%emt 00:00:17]} 21. Rxb7 {[%clk 00:48:24]} {[%emt 00:00:12]} Rxe4 {[%clk
00:16:37]} {[%emt 00:07:12]} 1/2-1/2

[Event "Masters Tournament (MTO)"]
[Site "Biel, Switzerland"]
[Date "2026.07.17"]
[Round "5.17"]
[White "Tkhoruk, Roman"]
[Black "Schnell, Simon"]
[Result "1/2-1/2"]
[TimeControl "100+30+30sec/move"]
[WhiteTitle "-"]
[BlackTitle "-"]
[WhiteFideId "34161589"]
[BlackFideId "1345311"]
[WhiteElo "1967"]
[BlackElo "2211"]

1. e4 {[%clk 01:40:59]} {[%emt 04:28:52]} c6 {[%clk 01:40:55]} {[%emt
00:00:04]} 2. d4 {[%clk 01:41:16]} {[%emt 00:00:12]} d5 {[%clk 01:41:21]}
{[%emt 00:00:06]} 3. e5 {[%clk 01:41:29]} {[%emt 00:00:15]} Bf5 {[%clk
01:41:46]} {[%emt 00:00:05]} 4. h4 {[%clk 01:41:38]} {[%emt 00:00:21]} h5
{[%clk 01:42:12]} {[%emt 00:00:04]} 5. Bd3 {[%clk 01:41:56]} {[%emt 00:00:14]}
Bxd3 {[%clk 01:42:38]} {[%emt 00:00:03]} 6. Qxd3 {[%clk 01:42:15]} {[%emt
00:00:12]} Qa5+ {[%clk 01:43:06]} {[%emt 00:00:01]} 7. c3 {[%clk 01:38:23]}
{[%emt 00:04:22]} Qa6 {[%clk 01:39:00]} {[%emt 00:04:36]} 8. Qxa6 {[%clk
01:38:38]} {[%emt 00:00:16]} Nxa6 {[%clk 01:39:24]} {[%emt 00:00:05]} 9. Be3
{[%clk 01:38:05]} {[%emt 00:01:03]} e6 {[%clk 01:37:43]} {[%emt 00:02:12]} 10.
Nd2 {[%clk 01:37:38]} {[%emt 00:00:56]} Ne7 {[%clk 01:34:03]} {[%emt 00:04:09]}
11. Ngf3 {[%clk 01:37:21]} {[%emt 00:00:48]} Nf5 {[%clk 01:34:14]} {[%emt
00:00:19]} 12. Ke2 {[%clk 01:36:43]} {[%emt 00:01:08]} c5 {[%clk 01:26:49]}
{[%emt 00:07:54]} 13. g3 {[%clk 01:20:19]} {[%emt 00:16:55]} cxd4 {[%clk
01:21:51]} {[%emt 00:05:28]} 14. cxd4 {[%clk 01:20:27]} {[%emt 00:00:22]} Be7
{[%clk 01:21:28]} {[%emt 00:00:53]} 15. a3 {[%clk 01:20:03]} {[%emt 00:00:54]}
Rc8 {[%clk 01:16:46]} {[%emt 00:05:12]} 16. Rac1 {[%clk 01:19:50]} {[%emt
00:00:43]} Kd7 {[%clk 01:15:59]} {[%emt 00:01:18]} 17. Nb3 {[%clk 01:15:13]}
{[%emt 00:05:06]} b6 {[%clk 01:13:59]} {[%emt 00:02:30]} 18. Rxc8 {[%clk
01:08:49]} {[%emt 00:06:54]} Rxc8 {[%clk 01:14:24]} {[%emt 00:00:05]} 19. Rc1
{[%clk 01:09:05]} {[%emt 00:00:14]} Rxc1 {[%clk 01:14:25]} {[%emt 00:00:29]} 20.
Nxc1 {[%clk 01:09:20]} {[%emt 00:00:16]} Nb8 {[%clk 01:14:31]} {[%emt
00:00:23]} 21. Kd3 {[%clk 01:05:49]} {[%emt 00:04:01]} Kc6 {[%clk 01:08:40]}
{[%emt 00:06:21]} 22. Na2 {[%clk 01:04:39]} {[%emt 00:01:40]} Nd7 {[%clk
01:07:49]} {[%emt 00:01:20]} 23. Nc3 {[%clk 00:46:18]} {[%emt 00:18:52]} b5
{[%clk 01:05:45]} {[%emt 00:02:34]} 24. a4 {[%clk 00:41:07]} {[%emt 00:05:42]}
bxa4 {[%clk 01:01:16]} {[%emt 00:04:58]} 25. Nxa4 {[%clk 00:41:26]} {[%emt
00:00:11]} Nb8 {[%clk 00:59:21]} {[%emt 00:02:25]} 26. Nc3 {[%clk 00:25:58]}
{[%emt 00:15:58]} Na6 {[%clk 00:58:01]} {[%emt 00:01:49]} 27. Nd1 {[%clk
00:23:29]} {[%emt 00:03:00]} Nb4+ {[%clk 00:55:54]} {[%emt 00:02:37]} 28. Kc3
{[%clk 00:23:30]} {[%emt 00:00:29]} Kb5 {[%clk 00:56:03]} {[%emt 00:00:20]} 29.
Bd2 {[%clk 00:22:04]} {[%emt 00:01:57]} Nc6 {[%clk 00:56:00]} {[%emt 00:00:33]}
30. Ne3 {[%clk 00:17:41]} {[%emt 00:04:53]} Nxe3 {[%clk 00:50:36]} {[%emt
00:05:54]} 31. Bxe3 {[%clk 00:16:21]} {[%emt 00:01:50]} Na5 {[%clk 00:47:00]}
{[%emt 00:04:06]} 32. b3 {[%clk 00:12:42]} {[%emt 00:04:10]} Nc6 {[%clk
00:46:33]} {[%emt 00:00:55]} 33. Ng5 {[%clk 00:12:04]} {[%emt 00:01:09]} Bxg5
{[%clk 00:42:20]} {[%emt 00:04:42]} 34. Bxg5 {[%clk 00:12:17]} {[%emt
00:00:18]} a5 {[%clk 00:41:18]} {[%emt 00:01:33]} 35. f3 {[%clk 00:11:05]}
{[%emt 00:01:41]} g6 {[%clk 00:41:06]} {[%emt 00:00:42]} 36. Bh6 {[%clk
00:11:09]} {[%emt 00:00:26]} a4 {[%clk 00:39:20]} {[%emt 00:02:17]} 37. bxa4+
{[%clk 00:11:30]} {[%emt 00:00:08]} Kxa4 {[%clk 00:39:45]} {[%emt 00:00:04]} 38.
Bf8 {[%clk 00:11:36]} {[%emt 00:00:25]} Na5 {[%clk 00:36:29]} {[%emt 00:03:46]}
39. Be7 {[%clk 00:09:26]} {[%emt 00:02:40]} Nc4 {[%clk 00:35:59]} {[%emt
00:00:59]} 40. Bg5 {[%clk 00:09:45]} {[%emt 00:00:12]} Na3 {[%clk 00:35:58]}
{[%emt 00:00:31]} 41. Be3 {[%clk 00:26:47]} {[%emt 00:13:28]} Nb5+ {[%clk
01:05:44]} {[%emt 00:00:43]} 42. Kc2 {[%clk 00:25:18]} {[%emt 00:02:00]} Kb4
{[%clk 01:05:42]} {[%emt 00:00:32]} 43. Kd3 {[%clk 00:25:39]} {[%emt 00:00:09]}
Kb3 {[%clk 01:06:02]} {[%emt 00:00:10]} 44. Bd2 {[%clk 00:25:22]} {[%emt
00:00:47]} Na3 {[%clk 01:05:53]} {[%emt 00:00:39]} 45. Be1 {[%clk 00:16:13]}
{[%emt 00:09:37]} Nc4 {[%clk 01:04:36]} {[%emt 00:01:49]} 46. Bc3 {[%clk
00:11:07]} {[%emt 00:05:36]} Nb6 {[%clk 01:03:38]} {[%emt 00:01:28]} 47. Be1
{[%clk 00:09:03]} {[%emt 00:02:34]} Na4 {[%clk 01:00:14]} {[%emt 00:03:55]} 48.
Ba5 {[%clk 00:09:10]} {[%emt 00:00:23]} Nb2 {[%clk 01:00:03]} {[%emt 00:00:40]}
49. Ke2 {[%clk 00:09:20]} {[%emt 00:00:19]} Kc4 {[%clk 00:58:37]} {[%emt
00:01:56]} 50. Bb6 {[%clk 00:09:13]} {[%emt 00:00:38]} Na4 {[%clk 00:58:55]}
{[%emt 00:00:11]} 51. Ba7 {[%clk 00:09:31]} {[%emt 00:00:12]} Nc3+ {[%clk
00:58:58]} {[%emt 00:00:28]} 52. Ke3 {[%clk 00:09:50]} {[%emt 00:00:11]} Nb5
{[%clk 00:57:45]} {[%emt 00:01:42]} 53. Bc5 {[%clk 00:09:10]} {[%emt 00:01:10]}
Kc3 {[%clk 00:54:58]} {[%emt 00:03:17]} 54. Bb6 {[%clk 00:07:42]} {[%emt
00:01:59]} Na3 {[%clk 00:54:30]} {[%emt 00:00:58]} 55. Kf4 {[%clk 00:06:58]}
{[%emt 00:01:14]} Nc2 {[%clk 00:52:18]} {[%emt 00:02:42]} 56. Kg5 {[%clk
00:07:18]} {[%emt 00:00:10]} Nxd4 {[%clk 00:51:33]} {[%emt 00:01:16]} 57. Kf6
{[%clk 00:07:39]} {[%emt 00:00:08]} Nxf3 {[%clk 00:43:56]} {[%emt 00:08:07]} 58.
Kxf7 {[%clk 00:08:01]} {[%emt 00:00:08]} Nxe5+ {[%clk 00:41:52]} {[%emt
00:02:34]} 59. Kxe6 {[%clk 00:08:24]} {[%emt 00:00:07]} Ng4 {[%clk 00:40:56]}
{[%emt 00:01:26]} 60. Kxd5 {[%clk 00:08:23]} {[%emt 00:00:31]} Kd3 {[%clk
00:41:08]} {[%emt 00:00:18]} 61. Ke6 {[%clk 00:08:02]} {[%emt 00:00:51]} Ke4
{[%clk 00:41:32]} {[%emt 00:00:06]} 62. Bc7 {[%clk 00:08:23]} {[%emt 00:00:08]}
Ne3 {[%clk 00:40:31]} {[%emt 00:01:31]} 63. Kf6 {[%clk 00:07:44]} {[%emt
00:01:09]} Nd5+ {[%clk 00:40:56]} {[%emt 00:00:06]} 64. Kxg6 {[%clk 00:08:08]}
{[%emt 00:00:06]} Nxc7 {[%clk 00:41:23]} {[%emt 00:00:03]} 65. Kxh5 {[%clk
00:08:27]} {[%emt 00:00:11]} Kf5 {[%clk 00:41:36]} {[%emt 00:00:17]} 66. g4+
{[%clk 00:08:34]} {[%emt 00:00:23]} Kf6 {[%clk 00:40:25]} {[%emt 00:01:41]} 67.
Kh6 {[%clk 00:08:52]} {[%emt 00:00:12]} Kf7 {[%clk 00:39:43]} {[%emt 00:01:11]}
68. Kh7 {[%clk 00:09:12]} {[%emt 00:00:11]} Ne6 {[%clk 00:39:55]} {[%emt
00:00:18]} 69. g5 {[%clk 00:08:58]} {[%emt 00:00:43]} Nf8 {[%clk 00:40:20]}
{[%emt 00:00:05]} 70. Kh6 {[%clk 00:09:08]} {[%emt 00:00:21]} Kg8 {[%clk
00:39:53]} {[%emt 00:00:57]} 71. h5 {[%clk 00:09:09]} {[%emt 00:00:29]} Ne6
{[%clk 00:40:17]} {[%emt 00:00:06]} 72. Kg6 {[%clk 00:09:26]} {[%emt 00:00:12]}
Nxg5 {[%clk 00:40:43]} {[%emt 00:00:04]} 73. Kxg5 {[%clk 00:09:49]} {[%emt
00:00:07]} Kh8 {[%clk 00:41:10]} {[%emt 00:00:04]} 1/2-1/2

[Event "Masters Tournament (MTO)"]
[Site "Biel, Switzerland"]
[Date "2026.07.17"]
[Round "5.18"]
[White "Angst, Oliver"]
[Black "Arsenie, Cristian Marc"]
[Result "0-1"]
[TimeControl "100+30+30sec/move"]
[WhiteTitle "-"]
[BlackTitle "-"]
[WhiteFideId "1334069"]
[BlackFideId "1345923"]
[WhiteElo "2121"]
[BlackElo "2300"]

1. e4 {[%clk 01:40:52]} {[%emt 00:00:06]} c5 {[%clk 01:40:56]} {[%emt
00:00:04]} 2. Nf3 {[%clk 01:41:15]} {[%emt 00:00:07]} d6 {[%clk 01:41:23]}
{[%emt 00:00:04]} 3. d4 {[%clk 01:41:30]} {[%emt 00:00:14]} cxd4 {[%clk
01:41:49]} {[%emt 00:00:04]} 4. Nxd4 {[%clk 01:41:51]} {[%emt 00:00:09]} Nf6
{[%clk 01:42:15]} {[%emt 00:00:05]} 5. Nc3 {[%clk 01:42:15]} {[%emt 00:00:07]}
a6 {[%clk 01:42:41]} {[%emt 00:00:03]} 6. h3 {[%clk 01:41:39]} {[%emt
00:01:05]} g6 {[%clk 01:42:45]} {[%emt 00:00:28]} 7. Be3 {[%clk 01:26:49]}
{[%emt 00:15:17]} Bg7 {[%clk 01:42:48]} {[%emt 00:00:27]} 8. Qd2 {[%clk
01:27:11]} {[%emt 00:00:08]} Nbd7 {[%clk 01:43:07]} {[%emt 00:00:12]} 9. g4
{[%clk 01:20:36]} {[%emt 00:07:06]} b5 {[%clk 01:41:47]} {[%emt 00:01:49]} 10.
f3 {[%clk 00:46:50]} {[%emt 00:34:16]} Bb7 {[%clk 01:40:28]} {[%emt 00:01:49]}
11. a3 {[%clk 00:41:33]} {[%emt 00:05:47]} Ne5 {[%clk 01:34:51]} {[%emt
00:06:07]} 12. h4 {[%clk 00:39:14]} {[%emt 00:02:49]} h5 {[%clk 01:28:57]}
{[%emt 00:06:24]} 13. g5 {[%clk 00:34:37]} {[%emt 00:05:08]} Nxf3+ {[%clk
01:25:56]} {[%emt 00:03:29]} 14. Nxf3 {[%clk 00:34:51]} {[%emt 00:00:16]} Nxe4
{[%clk 01:26:23]} {[%emt 00:00:04]} 15. Nxe4 {[%clk 00:30:17]} {[%emt
00:05:02]} Bxe4 {[%clk 01:26:49]} {[%emt 00:00:06]} 16. Bg2 {[%clk 00:27:06]}
{[%emt 00:03:41]} Bxb2 {[%clk 01:26:04]} {[%emt 00:01:15]} 17. Bd4 {[%clk
00:26:00]} {[%emt 00:01:35]} Bxa1 {[%clk 01:26:14]} {[%emt 00:00:21]} 18. Bxa1
{[%clk 00:25:41]} e5 {[%clk 01:23:07]} {[%emt 00:04:26]} 19. Qe3 {[%clk
00:17:56]} {[%emt 00:08:15]} Bxf3 {[%clk 01:20:32]} {[%emt 00:03:05]} 20. Bxf3
{[%clk 00:17:35]} {[%emt 00:00:51]} O-O {[%clk 01:17:08]} {[%emt 00:03:53]} 21.
Bxa8 {[%clk 00:16:17]} {[%emt 00:01:49]} Qxa8 {[%clk 01:17:13]} {[%emt
00:00:26]} 22. O-O {[%clk 00:16:01]} {[%emt 00:00:45]} Rc8 {[%clk 01:16:06]}
{[%emt 00:01:37]} 23. Qf3 {[%clk 00:03:44]} {[%emt 00:12:47]} Qa7+ {[%clk
01:14:55]} {[%emt 00:01:41]} 24. Kh1 {[%clk 00:00:35]} {[%emt 00:03:39]} Rxc2
{[%clk 01:06:02]} {[%emt 00:09:23]} 25. Bc3 {[%clk 00:01:01]} {[%emt 00:00:03]}
Qc7 {[%clk 01:02:09]} {[%emt 00:04:23]} 26. Ba5 {[%clk 00:00:46]} {[%emt
00:00:45]} Qc4 {[%clk 00:59:11]} {[%emt 00:03:29]} 27. Be1 {[%clk 00:00:44]}
{[%emt 00:00:32]} a5 {[%clk 00:57:25]} {[%emt 00:02:17]} 28. Bg3 {[%clk
00:00:33]} {[%emt 00:00:40]} b4 {[%clk 00:53:54]} {[%emt 00:04:01]} 29. axb4
{[%clk 00:01:01]} {[%emt 00:00:02]} axb4 {[%clk 00:53:43]} {[%emt 00:00:40]} 30.
Rb1 {[%clk 00:00:33]} {[%emt 00:00:58]} Rc1+ {[%clk 00:48:56]} {[%emt
00:05:19]} 31. Rxc1 {[%clk 00:01:01]} {[%emt 00:00:01]} Qxc1+ {[%clk 00:49:17]}
{[%emt 00:00:09]} 32. Kh2 {[%clk 00:01:15]} {[%emt 00:00:15]} Qc2+ {[%clk
00:49:43]} {[%emt 00:00:05]} 33. Bf2 {[%clk 00:00:42]} {[%emt 00:01:03]} b3
{[%clk 00:50:02]} {[%emt 00:00:11]} 34. Qf6 {[%clk 00:00:32]} {[%emt 00:00:39]}
b2 {[%clk 00:49:18]} {[%emt 00:01:15]} 35. Qd8+ {[%clk 00:00:35]} {[%emt
00:00:27]} Kh7 {[%clk 00:49:37]} {[%emt 00:00:10]} 36. Qf6 {[%clk 00:00:32]}
{[%emt 00:00:34]} Qb3 {[%clk 00:49:45]} {[%emt 00:00:22]} 0-1

[Event "Masters Tournament (MTO)"]
[Site "Biel, Switzerland"]
[Date "2026.07.17"]
[Round "5.19"]
[White "Kunz, Andre"]
[Black "Udelnov, Valentin"]
[Result "1/2-1/2"]
[TimeControl "100+30+30sec/move"]
[WhiteTitle "-"]
[BlackTitle "-"]
[WhiteFideId "24623652"]
[BlackFideId "16265734"]
[WhiteElo "2116"]
[BlackElo "2269"]

1. e4 {[%clk 01:40:58]} {[%emt 00:00:03]} e5 {[%clk 01:40:56]} {[%emt
00:00:03]} 2. Nc3 {[%clk 01:41:18]} {[%emt 00:00:12]} Nf6 {[%clk 01:41:18]}
{[%emt 00:00:08]} 3. g3 {[%clk 01:41:31]} {[%emt 00:00:15]} Nc6 {[%clk
01:40:31]} {[%emt 00:01:17]} 4. Bg2 {[%clk 01:41:56]} {[%emt 00:00:05]} Bc5
{[%clk 01:33:49]} {[%emt 00:07:12]} 5. Nge2 {[%clk 01:41:39]} {[%emt 00:00:47]}
O-O {[%clk 01:33:18]} {[%emt 00:01:01]} 6. O-O {[%clk 01:42:05]} {[%emt
00:00:04]} a5 {[%clk 01:31:11]} {[%emt 00:02:38]} 7. h3 {[%clk 01:41:18]}
{[%emt 00:01:17]} d6 {[%clk 01:26:16]} {[%emt 00:05:25]} 8. Kh2 {[%clk
01:40:21]} {[%emt 00:01:27]} Re8 {[%clk 01:04:20]} {[%emt 00:22:25]} 9. d3
{[%clk 01:37:55]} {[%emt 00:02:55]} h6 {[%clk 01:00:15]} {[%emt 00:04:35]} 10.
f4 {[%clk 01:34:42]} {[%emt 00:03:43]} exf4 {[%clk 00:50:58]} {[%emt 00:09:47]}
11. Nxf4 {[%clk 01:31:47]} {[%emt 00:03:25]} Nd4 {[%clk 00:38:36]} {[%emt
00:12:52]} 12. Ncd5 {[%clk 01:18:29]} {[%emt 00:13:47]} Nxd5 {[%clk 00:28:11]}
{[%emt 00:10:55]} 13. Nxd5 {[%clk 01:18:04]} {[%emt 00:00:55]} c6 {[%clk
00:28:35]} {[%emt 00:00:07]} 14. Ne3 {[%clk 01:12:21]} {[%emt 00:06:13]} Ne6
{[%clk 00:24:00]} {[%emt 00:05:04]} 15. Qh5 {[%clk 00:57:54]} {[%emt 00:14:56]}
Qc7 {[%clk 00:11:16]} {[%emt 00:13:15]} 16. Nf5 {[%clk 00:47:30]} {[%emt
00:10:54]} Ng5 {[%clk 00:09:12]} {[%emt 00:02:34]} 17. Bxg5 {[%clk 00:41:26]}
{[%emt 00:06:34]} hxg5 {[%clk 00:09:32]} {[%emt 00:00:10]} 18. Qxg5 {[%clk
00:37:53]} {[%emt 00:04:03]} Bxf5 {[%clk 00:09:54]} {[%emt 00:00:07]} 19. Rxf5
{[%clk 00:37:54]} {[%emt 00:00:30]} Re5 {[%clk 00:06:01]} {[%emt 00:04:23]} 20.
c3 {[%clk 00:36:41]} {[%emt 00:01:43]} Rxf5 {[%clk 00:05:59]} {[%emt 00:00:32]}
21. Qxf5 {[%clk 00:36:36]} {[%emt 00:00:35]} Re8 {[%clk 00:06:09]} {[%emt
00:00:20]} 22. d4 {[%clk 00:35:49]} {[%emt 00:01:17]} Bb6 {[%clk 00:06:36]}
{[%emt 00:00:04]} 23. Re1 {[%clk 00:26:46]} {[%emt 00:09:32]} Re6 {[%clk
00:06:58]} {[%emt 00:00:08]} 24. Qg5 {[%clk 00:10:54]} {[%emt 00:16:21]} c5
{[%clk 00:05:22]} {[%emt 00:02:07]} 25. d5 {[%clk 00:10:06]} {[%emt 00:01:19]}
Re5 {[%clk 00:05:37]} {[%emt 00:00:14]} 26. Qf4 {[%clk 00:09:15]} {[%emt
00:01:21]} c4 {[%clk 00:05:55]} {[%emt 00:00:11]} 27. Rf1 {[%clk 00:09:14]}
{[%emt 00:00:31]} Ba7 {[%clk 00:04:17]} {[%emt 00:02:08]} 28. h4 {[%clk
00:09:19]} {[%emt 00:00:25]} b5 {[%clk 00:04:24]} {[%emt 00:00:23]} 29. g4
{[%clk 00:08:06]} {[%emt 00:01:43]} Qe7 {[%clk 00:04:05]} {[%emt 00:00:50]} 30.
Kg3 {[%clk 00:07:48]} {[%emt 00:00:48]} Bb6 {[%clk 00:03:49]} {[%emt 00:00:46]}
31. g5 {[%clk 00:07:25]} {[%emt 00:00:52]} Bd8 {[%clk 00:03:56]} {[%emt
00:00:23]} 32. Qg4 {[%clk 00:06:29]} {[%emt 00:01:26]} g6 {[%clk 00:02:17]}
{[%emt 00:02:09]} 33. Rf4 {[%clk 00:06:17]} {[%emt 00:00:42]} Kg7 {[%clk
00:02:15]} {[%emt 00:00:32]} 34. Bh3 {[%clk 00:05:58]} {[%emt 00:00:49]} Qa7
{[%clk 00:01:59]} {[%emt 00:00:46]} 35. Qf3 {[%clk 00:03:40]} {[%emt 00:02:49]}
b4 {[%clk 00:01:14]} {[%emt 00:01:15]} 36. Qf2 {[%clk 00:03:20]} {[%emt
00:00:49]} Bb6 {[%clk 00:01:31]} {[%emt 00:00:13]} 37. Qe2 {[%clk 00:03:27]}
{[%emt 00:00:23]} bxc3 {[%clk 00:01:24]} {[%emt 00:00:38]} 38. bxc3 {[%clk
00:03:53]} {[%emt 00:00:03]} Be3 {[%clk 00:01:40]} {[%emt 00:00:15]} 39. Rg4
{[%clk 00:04:06]} {[%emt 00:00:17]} Bc1 {[%clk 00:01:14]} {[%emt 00:00:56]} 40.
Qf2 {[%clk 00:01:43]} {[%emt 00:02:53]} Qxf2+ {[%clk 00:00:55]} {[%emt
00:00:49]} 41. Kxf2 {[%clk 00:01:58]} {[%emt 00:00:15]} Bd2 {[%clk 00:28:36]}
{[%emt 00:02:50]} 42. Bf1 {[%clk 00:29:41]} {[%emt 00:02:47]} Bxc3 {[%clk
00:28:18]} {[%emt 00:00:47]} 43. Bxc4 {[%clk 00:30:06]} {[%emt 00:00:05]} Re7
{[%clk 00:28:32]} {[%emt 00:00:16]} 1/2-1/2